{"text_format":"3","workbook":"xlsx","n_sheets":14,"sheets":["עצות","סיכום","ינו","פבר","מרץ","אפר","מאי","יונ","יול","אוג","ספט","אוק","נוב","דצמ"],"not_rendered":{"charts":1,"defined_names":27},"read":"whole","date_system":"1900"}

{"sheet":"עצות","index":0,"n_rows":18,"n_cols":1,"rows_kept":18}
["עצות עבור התבנית"]
["האם יש דרך קלה לעבור בין גליון הסיכום של מגמות ההוצאות לבין פרטי ההוצאות החודשיות?"]
["כדי לנווט במהירות אל ההוצאות של חודש מסוים, לחץ על קישור הניווט המשויך שנמצא מעל התרשים, כגון קישור הניווט ינו בתא B2. לאחר מכן, כדי לחזור אל גליון העבודה של מגמות ההוצאות, לחץ על קישור הניווט סיכום בתא D1. "]
["כדי לחזור אל גליון עבודה זה של עצות, בגליון העבודה 'סיכום', בחר את תא N2. מכל גליונות העבודה של החודשים, בחר את תא E1."]
["כיצד ניתן להוסיף סוג הוצאה חדש לסיכום ההוצאות או הוצאות חודשיות חדשות?"]
["סיכום ההוצאות מתחת לתרשים ופרטי ההוצאות עבור כל חודש מהווים טבלאות Excel. כדי להוסיף שורות חדשות לטבלת Excel, בצע אחת מהפעולות הבאות:"]
[{"$f":"ROW(A1)&\". אם לטבלה אין שורת סכום, התחל להקליד מתחת לטבלה והיא תתרחב באופן אוטומטי בעת ההקשה על מקש Enter או Tab.\"","v":"1. אם לטבלה אין שורת סכום, התחל להקליד מתחת לטבלה והיא תתרחב באופן אוטומטי בעת ההקשה על מקש Enter או Tab."}]
[{"$f":"ROW(A2)&\". מקם את מצביע התא בתא האחרון מעל שורת הסכום, כגון הסכום הכולל של ההוצאה האחרונה, ולאחר מכן הקש על מקש Tab.\"","v":"2. מקם את מצביע התא בתא האחרון מעל שורת הסכום, כגון הסכום הכולל של ההוצאה האחרונה, ולאחר מכן הקש על מקש Tab."}]
[{"$f":"ROW(A3)&\". לחץ באמצעות לחצן העכבר הימני בטבלה ובתפריט המוקפץ, הצבע על 'הוספה' ולאחר מכן לחץ על 'שורות טבלה מעל' או 'שורות טבלה מתחת'.\"","v":"3. לחץ באמצעות לחצן העכבר הימני בטבלה ובתפריט המוקפץ, הצבע על 'הוספה' ולאחר מכן לחץ על 'שורות טבלה מעל' או 'שורות טבלה מתחת'."}]
[{"$f":"ROW(A4)&\". בפינה השמאלית התחתונה של הטבלה, מקם את העכבר על נקודת האחיזה לשינוי גודל של הטבלה וגרור כדי להגדיל את מספר שורות הטבלה הזמינות.\"","v":"4. בפינה השמאלית התחתונה של הטבלה, מקם את העכבר על נקודת האחיזה לשינוי גודל של הטבלה וגרור כדי להגדיל את מספר שורות הטבלה הזמינות."}]
["הזן הוצאה בגליון העבודה סיכום, בטבלה סיכום ההוצאות, בעמודה הוצאות."]
["הוסף את סכום ההוצאה עבור כל סוג הוצאה בגליון העבודה של החודש שבו התרחשה ההוצאה."]
["לדוגמה: \"הוצאה 1\" מתרחשת בחודשים ינואר עד יוני ובדצמבר. "]
[{"$f":"ROW(A1)&\". הוצאה 1 מוזנת בגליון העבודה לסיכום תחת 'הוצאה' בטבלה ExpenseSummary (ככותרת עבור סוג ההוצאה)\"","v":"1. הוצאה 1 מוזנת בגליון העבודה לסיכום תחת 'הוצאה' בטבלה ExpenseSummary (ככותרת עבור סוג ההוצאה)"}]
[{"$f":"ROW(A2)&\". עבור כל חודש שבו מתרחשת ההוצאה, הזן את סכום ההוצאה בגליון העבודה של החודש התואם.\"","v":"2. עבור כל חודש שבו מתרחשת ההוצאה, הזן את סכום ההוצאה בגליון העבודה של החודש התואם."}]
[{"$f":"ROW(A3)&\". סוג ההוצאה מגליון העבודה ExpenseSummary יוצר רשימת קטגוריות עבור העמודה 'קטגוריה' בגליון העבודה של כל חודש.\"","v":"3. סוג ההוצאה מגליון העבודה ExpenseSummary יוצר רשימת קטגוריות עבור העמודה 'קטגוריה' בגליון העבודה של כל חודש."}]
[{"$f":"ROW(A4)&\". השתמש ברשימת הקטגוריות בעמודה 'קטגוריה' כדי לבחור את סוג ההוצאה התואם עבור סכום ההוצאה שהוזן\"","v":"4. השתמש ברשימת הקטגוריות בעמודה 'קטגוריה' כדי לבחור את סוג ההוצאה התואם עבור סכום ההוצאה שהוזן"}]
[{"$f":"ROW(A5)&\". כדי להוסיף הוצאות חדשות עבור חודש כלשהו, הוסף שורה חדשה בטבלה ExpenseSummary בגליון העבודה של הסיכום, ולאחר מכן הזן את פרטי ההוצאה התואמת בגליון העבודה של החודש שבו חלה ההוצאה.\"","v":"5. כדי להוסיף הוצאות חדשות עבור חודש כלשהו, הוסף שורה חדשה בטבלה ExpenseSummary בגליון העבודה של הסיכום, ולאחר מכן הזן את פרטי ההוצאה התואמת בגליון העבודה של החודש שבו חלה ההוצאה."}]

{"sheet":"סיכום","index":1,"n_rows":10,"n_cols":15,"rows_kept":10}
["מגמות ההוצאות"]
[null,"ינו","פבר","מרץ","אפר","מאי","יונ","יול","אוג","ספט","אוק","נוב","דצמ","עצות"]
[]
["הוצאות","ינו","פבר","מרץ","אפר","מאי","יונ","יול","אוג","ספט","אוק","נוב","דצמ","סה\"כ","מגמה"]
["הוצאה 1",{"$f":"SUMIFS(ExpJan[סכום],ExpJan[קטגוריה],סיכום_ההוצאות[[#This Row],[הוצאות]])","v":{"v":33,"d":"33.00"}},{"$f":"SUMIFS(ExpFeb[סכום],ExpFeb[קטגוריה],סיכום_ההוצאות[[#This Row],[הוצאות]])","v":{"v":375,"d":"375.00"}},{"$f":"SUMIFS(ExpMar[סכום],ExpMar[קטגוריה],סיכום_ההוצאות[[#This Row],[הוצאות]])","v":{"v":33,"d":"33.00"}},{"$f":"SUMIFS(ExpApr[סכום],ExpApr[קטגוריה],סיכום_ההוצאות[[#This Row],[הוצאות]])","v":{"v":45,"d":"45.00"}},{"$f":"SUMIFS(ExpMay[סכום],ExpMay[קטגוריה],סיכום_ההוצאות[[#This Row],[הוצאות]])","v":{"v":375,"d":"375.00"}},{"$f":"SUMIFS(ExpJun[סכום],ExpJun[קטגוריה],סיכום_ההוצאות[[#This Row],[הוצאות]])","v":{"v":201,"d":"201.00"}},{"$f":"SUMIFS(ExpJul[סכום],ExpJul[קטגוריה],סיכום_ההוצאות[[#This Row],[הוצאות]])","v":{"v":0,"d":"0.00"}},{"$f":"SUMIFS(ExpAug[סכום],ExpAug[קטגוריה],סיכום_ההוצאות[[#This Row],[הוצאות]])","v":{"v":0,"d":"0.00"}},{"$f":"SUMIFS(ExpSep[סכום],ExpSep[קטגוריה],סיכום_ההוצאות[[#This Row],[הוצאות]])","v":{"v":0,"d":"0.00"}},{"$f":"SUMIFS(ExpOct[סכום],ExpOct[קטגוריה],סיכום_ההוצאות[[#This Row],[הוצאות]])","v":{"v":0,"d":"0.00"}},{"$f":"SUMIFS(ExpNov[סכום],ExpNov[קטגוריה],סיכום_ההוצאות[[#This Row],[הוצאות]])","v":{"v":0,"d":"0.00"}},{"$f":"SUMIFS(ExpDec[סכום],ExpDec[קטגוריה],סיכום_ההוצאות[[#This Row],[הוצאות]])","v":{"v":201,"d":"201.00"}},{"$f":"SUM(סיכום_ההוצאות[[#This Row],[ינו]:[דצמ]])","v":{"v":1263,"d":"1,263.00"}}]
["הוצאה 2",{"$f":"SUMIFS(ExpJan[סכום],ExpJan[קטגוריה],סיכום_ההוצאות[[#This Row],[הוצאות]])","v":{"v":238,"d":"238.00"}},{"$f":"SUMIFS(ExpFeb[סכום],ExpFeb[קטגוריה],סיכום_ההוצאות[[#This Row],[הוצאות]])","v":{"v":238,"d":"238.00"}},{"$f":"SUMIFS(ExpMar[סכום],ExpMar[קטגוריה],סיכום_ההוצאות[[#This Row],[הוצאות]])","v":{"v":238,"d":"238.00"}},{"$f":"SUMIFS(ExpApr[סכום],ExpApr[קטגוריה],סיכום_ההוצאות[[#This Row],[הוצאות]])","v":{"v":123,"d":"123.00"}},{"$f":"SUMIFS(ExpMay[סכום],ExpMay[קטגוריה],סיכום_ההוצאות[[#This Row],[הוצאות]])","v":{"v":111,"d":"111.00"}},{"$f":"SUMIFS(ExpJun[סכום],ExpJun[קטגוריה],סיכום_ההוצאות[[#This Row],[הוצאות]])","v":{"v":98,"d":"98.00"}},{"$f":"SUMIFS(ExpJul[סכום],ExpJul[קטגוריה],סיכום_ההוצאות[[#This Row],[הוצאות]])","v":{"v":0,"d":"0.00"}},{"$f":"SUMIFS(ExpAug[סכום],ExpAug[קטגוריה],סיכום_ההוצאות[[#This Row],[הוצאות]])","v":{"v":0,"d":"0.00"}},{"$f":"SUMIFS(ExpSep[סכום],ExpSep[קטגוריה],סיכום_ההוצאות[[#This Row],[הוצאות]])","v":{"v":0,"d":"0.00"}},{"$f":"SUMIFS(ExpOct[סכום],ExpOct[קטגוריה],סיכום_ההוצאות[[#This Row],[הוצאות]])","v":{"v":0,"d":"0.00"}},{"$f":"SUMIFS(ExpNov[סכום],ExpNov[קטגוריה],סיכום_ההוצאות[[#This Row],[הוצאות]])","v":{"v":0,"d":"0.00"}},{"$f":"SUMIFS(ExpDec[סכום],ExpDec[קטגוריה],סיכום_ההוצאות[[#This Row],[הוצאות]])","v":{"v":440,"d":"440.00"}},{"$f":"SUM(סיכום_ההוצאות[[#This Row],[ינו]:[דצמ]])","v":{"v":1486,"d":"1,486.00"}}]
["הוצאה 3",{"$f":"SUMIFS(ExpJan[סכום],ExpJan[קטגוריה],סיכום_ההוצאות[[#This Row],[הוצאות]])","v":{"v":110,"d":"110.00"}},{"$f":"SUMIFS(ExpFeb[סכום],ExpFeb[קטגוריה],סיכום_ההוצאות[[#This Row],[הוצאות]])","v":{"v":110,"d":"110.00"}},{"$f":"SUMIFS(ExpMar[סכום],ExpMar[קטגוריה],סיכום_ההוצאות[[#This Row],[הוצאות]])","v":{"v":110,"d":"110.00"}},{"$f":"SUMIFS(ExpApr[סכום],ExpApr[קטגוריה],סיכום_ההוצאות[[#This Row],[הוצאות]])","v":{"v":125,"d":"125.00"}},{"$f":"SUMIFS(ExpMay[סכום],ExpMay[קטגוריה],סיכום_ההוצאות[[#This Row],[הוצאות]])","v":{"v":333,"d":"333.00"}},{"$f":"SUMIFS(ExpJun[סכום],ExpJun[קטגוריה],סיכום_ההוצאות[[#This Row],[הוצאות]])","v":{"v":122,"d":"122.00"}},{"$f":"SUMIFS(ExpJul[סכום],ExpJul[קטגוריה],סיכום_ההוצאות[[#This Row],[הוצאות]])","v":{"v":0,"d":"0.00"}},{"$f":"SUMIFS(ExpAug[סכום],ExpAug[קטגוריה],סיכום_ההוצאות[[#This Row],[הוצאות]])","v":{"v":0,"d":"0.00"}},{"$f":"SUMIFS(ExpSep[סכום],ExpSep[קטגוריה],סיכום_ההוצאות[[#This Row],[הוצאות]])","v":{"v":0,"d":"0.00"}},{"$f":"SUMIFS(ExpOct[סכום],ExpOct[קטגוריה],סיכום_ההוצאות[[#This Row],[הוצאות]])","v":{"v":0,"d":"0.00"}},{"$f":"SUMIFS(ExpNov[סכום],ExpNov[קטגוריה],סיכום_ההוצאות[[#This Row],[הוצאות]])","v":{"v":0,"d":"0.00"}},{"$f":"SUMIFS(ExpDec[סכום],ExpDec[קטגוריה],סיכום_ההוצאות[[#This Row],[הוצאות]])","v":{"v":122,"d":"122.00"}},{"$f":"SUM(סיכום_ההוצאות[[#This Row],[ינו]:[דצמ]])","v":{"v":1032,"d":"1,032.00"}}]
["הוצאה 4",{"$f":"SUMIFS(ExpJan[סכום],ExpJan[קטגוריה],סיכום_ההוצאות[[#This Row],[הוצאות]])","v":{"v":426,"d":"426.00"}},{"$f":"SUMIFS(ExpFeb[סכום],ExpFeb[קטגוריה],סיכום_ההוצאות[[#This Row],[הוצאות]])","v":{"v":84,"d":"84.00"}},{"$f":"SUMIFS(ExpMar[סכום],ExpMar[קטגוריה],סיכום_ההוצאות[[#This Row],[הוצאות]])","v":{"v":84,"d":"84.00"}},{"$f":"SUMIFS(ExpApr[סכום],ExpApr[קטגוריה],סיכום_ההוצאות[[#This Row],[הוצאות]])","v":{"v":426,"d":"426.00"}},{"$f":"SUMIFS(ExpMay[סכום],ExpMay[קטגוריה],סיכום_ההוצאות[[#This Row],[הוצאות]])","v":{"v":125,"d":"125.00"}},{"$f":"SUMIFS(ExpJun[סכום],ExpJun[קטגוריה],סיכום_ההוצאות[[#This Row],[הוצאות]])","v":{"v":187,"d":"187.00"}},{"$f":"SUMIFS(ExpJul[סכום],ExpJul[קטגוריה],סיכום_ההוצאות[[#This Row],[הוצאות]])","v":{"v":0,"d":"0.00"}},{"$f":"SUMIFS(ExpAug[סכום],ExpAug[קטגוריה],סיכום_ההוצאות[[#This Row],[הוצאות]])","v":{"v":0,"d":"0.00"}},{"$f":"SUMIFS(ExpSep[סכום],ExpSep[קטגוריה],סיכום_ההוצאות[[#This Row],[הוצאות]])","v":{"v":0,"d":"0.00"}},{"$f":"SUMIFS(ExpOct[סכום],ExpOct[קטגוריה],סיכום_ההוצאות[[#This Row],[הוצאות]])","v":{"v":0,"d":"0.00"}},{"$f":"SUMIFS(ExpNov[סכום],ExpNov[קטגוריה],סיכום_ההוצאות[[#This Row],[הוצאות]])","v":{"v":0,"d":"0.00"}},{"$f":"SUMIFS(ExpDec[סכום],ExpDec[קטגוריה],סיכום_ההוצאות[[#This Row],[הוצאות]])","v":{"v":187,"d":"187.00"}},{"$f":"SUM(סיכום_ההוצאות[[#This Row],[ינו]:[דצמ]])","v":{"v":1519,"d":"1,519.00"}}]
["הוצאה 5",{"$f":"SUMIFS(ExpJan[סכום],ExpJan[קטגוריה],סיכום_ההוצאות[[#This Row],[הוצאות]])","v":{"v":54,"d":"54.00"}},{"$f":"SUMIFS(ExpFeb[סכום],ExpFeb[קטגוריה],סיכום_ההוצאות[[#This Row],[הוצאות]])","v":{"v":54,"d":"54.00"}},{"$f":"SUMIFS(ExpMar[סכום],ExpMar[קטגוריה],סיכום_ההוצאות[[#This Row],[הוצאות]])","v":{"v":109,"d":"109.00"}},{"$f":"SUMIFS(ExpApr[סכום],ExpApr[קטגוריה],סיכום_ההוצאות[[#This Row],[הוצאות]])","v":{"v":98,"d":"98.00"}},{"$f":"SUMIFS(ExpMay[סכום],ExpMay[קטגוריה],סיכום_ההוצאות[[#This Row],[הוצאות]])","v":{"v":33,"d":"33.00"}},{"$f":"SUMIFS(ExpJun[סכום],ExpJun[קטגוריה],סיכום_ההוצאות[[#This Row],[הוצאות]])","v":{"v":441,"d":"441.00"}},{"$f":"SUMIFS(ExpJul[סכום],ExpJul[קטגוריה],סיכום_ההוצאות[[#This Row],[הוצאות]])","v":{"v":0,"d":"0.00"}},{"$f":"SUMIFS(ExpAug[סכום],ExpAug[קטגוריה],סיכום_ההוצאות[[#This Row],[הוצאות]])","v":{"v":0,"d":"0.00"}},{"$f":"SUMIFS(ExpSep[סכום],ExpSep[קטגוריה],סיכום_ההוצאות[[#This Row],[הוצאות]])","v":{"v":0,"d":"0.00"}},{"$f":"SUMIFS(ExpOct[סכום],ExpOct[קטגוריה],סיכום_ההוצאות[[#This Row],[הוצאות]])","v":{"v":0,"d":"0.00"}},{"$f":"SUMIFS(ExpNov[סכום],ExpNov[קטגוריה],סיכום_ההוצאות[[#This Row],[הוצאות]])","v":{"v":0,"d":"0.00"}},{"$f":"SUMIFS(ExpDec[סכום],ExpDec[קטגוריה],סיכום_ההוצאות[[#This Row],[הוצאות]])","v":{"v":99,"d":"99.00"}},{"$f":"SUM(סיכום_ההוצאות[[#This Row],[ינו]:[דצמ]])","v":{"v":888,"d":"888.00"}}]
["סה\"כ",{"$f":"SUBTOTAL(109,סיכום_ההוצאות[ינו])","v":{"v":861,"d":"861.00"}},{"$f":"SUBTOTAL(109,סיכום_ההוצאות[פבר])","v":{"v":861,"d":"861.00"}},{"$f":"SUBTOTAL(109,סיכום_ההוצאות[מרץ])","v":{"v":574,"d":"574.00"}},{"$f":"SUBTOTAL(109,סיכום_ההוצאות[אפר])","v":{"v":817,"d":"817.00"}},{"$f":"SUBTOTAL(109,סיכום_ההוצאות[מאי])","v":{"v":977,"d":"977.00"}},{"$f":"SUBTOTAL(109,סיכום_ההוצאות[יונ])","v":{"v":1049,"d":"1,049.00"}},{"$f":"SUBTOTAL(109,סיכום_ההוצאות[יול])","v":{"v":0,"d":"0.00"}},{"$f":"SUBTOTAL(109,סיכום_ההוצאות[אוג])","v":{"v":0,"d":"0.00"}},{"$f":"SUBTOTAL(109,סיכום_ההוצאות[ספט])","v":{"v":0,"d":"0.00"}},{"$f":"SUBTOTAL(109,סיכום_ההוצאות[אוק])","v":{"v":0,"d":"0.00"}},{"$f":"SUBTOTAL(109,סיכום_ההוצאות[נוב])","v":{"v":0,"d":"0.00"}},{"$f":"SUBTOTAL(109,סיכום_ההוצאות[דצמ])","v":{"v":1049,"d":"1,049.00"}},{"$f":"SUBTOTAL(109,סיכום_ההוצאות[סה\"כ])","v":{"v":6188,"d":"6,188.00"}}]

{"sheet":"ינו","index":2,"n_rows":9,"n_cols":5,"rows_kept":9,"merged":[[0,0,0,2]]}
["הוצאות בינואר",null,null,"סיכום","עצות"]
["תאריך","מס' הזמנת רכש","סכום","קטגוריה","תיאור"]
[{"$f":"DATE(YEAR(TODAY()),1,4)","v":"2016-01-04"},"A-12345",{"v":33,"d":"33.00"},"הוצאה 1","ציוד"]
[{"$f":"DATE(YEAR(TODAY()),1,5)","v":"2016-01-05"},"A-12346",{"v":238,"d":"238.00"},"הוצאה 2"]
[null,null,{"v":342,"d":"342.00"},"הוצאה 4"]
[null,null,{"v":110,"d":"110.00"},"הוצאה 3"]
[null,null,{"v":84,"d":"84.00"},"הוצאה 4"]
[null,null,{"v":54,"d":"54.00"},"הוצאה 5"]
["סה\"כ",null,{"$f":"SUBTOTAL(109,ExpJan[סכום])","v":{"v":861,"d":"861.00"}}]

{"sheet":"פבר","index":3,"n_rows":9,"n_cols":5,"rows_kept":9,"merged":[[0,0,0,2]]}
["הוצאות בפברואר",null,null,"סיכום","עצות"]
["תאריך","מס' הזמנת רכש","סכום","קטגוריה","תיאור"]
[{"$f":"DATE(YEAR(TODAY()),2,3)","v":"2016-02-03"},"A-12345",{"v":33,"d":"33.00"},"הוצאה 1","ציוד"]
[{"$f":"DATE(YEAR(TODAY()),2,4)","v":"2016-02-04"},"A-12346",{"v":238,"d":"238.00"},"הוצאה 2"]
[null,null,{"v":342,"d":"342.00"},"הוצאה 1"]
[null,null,{"v":110,"d":"110.00"},"הוצאה 3"]
[null,null,{"v":84,"d":"84.00"},"הוצאה 4"]
[null,null,{"v":54,"d":"54.00"},"הוצאה 5"]
["סה\"כ",null,{"$f":"SUBTOTAL(109,ExpFeb[סכום])","v":{"v":861,"d":"861.00"}}]

{"sheet":"מרץ","index":4,"n_rows":9,"n_cols":5,"rows_kept":9,"merged":[[0,0,0,2]]}
["הוצאות במרץ",null,null,"סיכום","עצות"]
["תאריך","מס' הזמנת רכש","סכום","קטגוריה","תיאור"]
[{"$f":"DATE(YEAR(TODAY()),3,5)","v":"2016-03-05"},"A-12345",{"v":33,"d":"33.00"},"הוצאה 1","ציוד"]
[{"$f":"DATE(YEAR(TODAY()),3,6)","v":"2016-03-06"},"A-12346",{"v":238,"d":"238.00"},"הוצאה 2"]
[null,null,{"v":55,"d":"55.00"},"הוצאה 5"]
[null,null,{"v":110,"d":"110.00"},"הוצאה 3"]
[null,null,{"v":84,"d":"84.00"},"הוצאה 4"]
[null,null,{"v":54,"d":"54.00"},"הוצאה 5"]
["סה\"כ",null,{"$f":"SUBTOTAL(109,ExpMar[סכום])","v":{"v":574,"d":"574.00"}}]

{"sheet":"אפר","index":5,"n_rows":9,"n_cols":5,"rows_kept":9,"merged":[[0,0,0,2]]}
["הוצאות באפריל",null,null,"סיכום","עצות"]
["תאריך","מס' הזמנת רכש","סכום","קטגוריה","תיאור"]
[{"$f":"DATE(YEAR(TODAY()),4,4)","v":"2016-04-04"},"A-12345",{"v":45,"d":"45.00"},"הוצאה 1","ציוד"]
[{"$f":"DATE(YEAR(TODAY()),4,8)","v":"2016-04-08"},"A-12346",{"v":123,"d":"123.00"},"הוצאה 2"]
[null,null,{"v":342,"d":"342.00"},"הוצאה 4"]
[null,null,{"v":125,"d":"125.00"},"הוצאה 3"]
[null,null,{"v":84,"d":"84.00"},"הוצאה 4"]
[null,null,{"v":98,"d":"98.00"},"הוצאה 5"]
["סה\"כ",null,{"$f":"SUBTOTAL(109,ExpApr[סכום])","v":{"v":817,"d":"817.00"}}]

{"sheet":"מאי","index":6,"n_rows":9,"n_cols":5,"rows_kept":9,"merged":[[0,0,0,2]]}
["הוצאות במאי",null,null,"סיכום","עצות"]
["תאריך","מס' הזמנת רכש","סכום","קטגוריה","תיאור"]
[{"$f":"DATE(YEAR(TODAY()),5,3)","v":"2016-05-03"},"A-12345",{"v":33,"d":"33.00"},"הוצאה 1","ציוד"]
[{"$f":"DATE(YEAR(TODAY()),5,8)","v":"2016-05-08"},"A-12346",{"v":111,"d":"111.00"},"הוצאה 2"]
[null,null,{"v":342,"d":"342.00"},"הוצאה 1"]
[null,null,{"v":333,"d":"333.00"},"הוצאה 3"]
[null,null,{"v":125,"d":"125.00"},"הוצאה 4"]
[null,null,{"v":33,"d":"33.00"},"הוצאה 5"]
["סה\"כ",null,{"$f":"SUBTOTAL(109,ExpMay[סכום])","v":{"v":977,"d":"977.00"}}]

{"sheet":"יונ","index":7,"n_rows":9,"n_cols":5,"rows_kept":9,"merged":[[0,0,0,2]]}
["הוצאות ביוני",null,null,"סיכום","עצות"]
["תאריך","מס' הזמנת רכש","סכום","קטגוריה","תיאור"]
[{"$f":"DATE(YEAR(TODAY()),6,7)","v":"2016-06-07"},"A-12345",{"v":201,"d":"201.00"},"הוצאה 1","ציוד"]
[{"$f":"DATE(YEAR(TODAY()),6,8)","v":"2016-06-08"},"A-12346",{"v":98,"d":"98.00"},"הוצאה 2"]
[null,null,{"v":342,"d":"342.00"},"הוצאה 5"]
[null,null,{"v":122,"d":"122.00"},"הוצאה 3"]
[null,null,{"v":187,"d":"187.00"},"הוצאה 4"]
[null,null,{"v":99,"d":"99.00"},"הוצאה 5"]
["סה\"כ",null,{"$f":"SUBTOTAL(109,ExpJun[סכום])","v":{"v":1049,"d":"1,049.00"}}]

{"sheet":"יול","index":8,"n_rows":9,"n_cols":5,"rows_kept":9,"merged":[[0,0,0,2]]}
["הוצאות ביולי",null,null,"סיכום","עצות"]
["תאריך","מס' הזמנת רכש","סכום","קטגוריה","תיאור"]
[{"$f":"DATE(YEAR(TODAY()),7,9)","v":"2016-07-09"},"A-12345",null,"הוצאה 1","ציוד"]
[{"$f":"DATE(YEAR(TODAY()),7,14)","v":"2016-07-14"},"A-12346",null,"הוצאה 2"]
[{"$nulls":3},"הוצאה 2"]
[{"$nulls":3},"הוצאה 3"]
[{"$nulls":3},"הוצאה 4"]
[{"$nulls":3},"הוצאה 5"]
["סה\"כ",null,{"$f":"SUBTOTAL(109,ExpJul[סכום])","v":{"v":0,"d":"0.00"}}]

{"sheet":"אוג","index":9,"n_rows":9,"n_cols":5,"rows_kept":9,"merged":[[0,0,0,2]]}
["הוצאות באוגוסט",null,null,"סיכום","עצות"]
["תאריך","מס' הזמנת רכש","סכום","קטגוריה","תיאור"]
[{"$f":"DATE(YEAR(TODAY()),8,8)","v":"2016-08-08"},"A-12345",null,"הוצאה 1","ציוד"]
[{"$f":"DATE(YEAR(TODAY()),8,9)","v":"2016-08-09"},"A-12346",null,"הוצאה 2"]
[{"$nulls":3},"הוצאה 2"]
[{"$nulls":3},"הוצאה 3"]
[{"$nulls":3},"הוצאה 4"]
[{"$nulls":3},"הוצאה 5"]
["סה\"כ",null,{"$f":"SUBTOTAL(109,ExpAug[סכום])","v":{"v":0,"d":"0.00"}}]

{"sheet":"ספט","index":10,"n_rows":9,"n_cols":5,"rows_kept":9,"merged":[[0,0,0,2]]}
["הוצאות בספטמבר",null,null,"סיכום","עצות"]
["תאריך","מס' הזמנת רכש","סכום","קטגוריה","תיאור"]
[{"$f":"DATE(YEAR(TODAY()),9,9)","v":"2016-09-09"},"A-12345",null,"הוצאה 1","ציוד"]
[{"$f":"DATE(YEAR(TODAY()),9,15)","v":"2016-09-15"},"A-12346",null,"הוצאה 2"]
[{"$nulls":3},"הוצאה 2"]
[{"$nulls":3},"הוצאה 3"]
[{"$nulls":3},"הוצאה 4"]
[{"$nulls":3},"הוצאה 5"]
["סה\"כ",null,{"$f":"SUBTOTAL(109,ExpSep[סכום])","v":{"v":0,"d":"0.00"}}]

{"sheet":"אוק","index":11,"n_rows":9,"n_cols":5,"rows_kept":9,"merged":[[0,0,0,2]]}
["הוצאות באוקטובר",null,null,"סיכום","עצות"]
["תאריך","מס' הזמנת רכש","סכום","קטגוריה","תיאור"]
[{"$f":"DATE(YEAR(TODAY()),10,10)","v":"2016-10-10"},"A-12345",null,"הוצאה 1","ציוד"]
[{"$f":"DATE(YEAR(TODAY()),10,21)","v":"2016-10-21"},"A-12346",null,"הוצאה 2"]
[{"$nulls":3},"הוצאה 2"]
[{"$nulls":3},"הוצאה 3"]
[{"$nulls":3},"הוצאה 4"]
[{"$nulls":3},"הוצאה 5"]
["סה\"כ",null,{"$f":"SUBTOTAL(109,ExpOct[סכום])","v":{"v":0,"d":"0.00"}}]

{"sheet":"נוב","index":12,"n_rows":9,"n_cols":5,"rows_kept":9,"merged":[[0,0,0,2]]}
["הוצאות בנובמבר",null,null,"סיכום","עצות"]
["תאריך","מס' הזמנת רכש","סכום","קטגוריה","תיאור"]
[{"$f":"DATE(YEAR(TODAY()),11,14)","v":"2016-11-14"},"A-12345",null,"הוצאה 1","ציוד"]
[{"$f":"DATE(YEAR(TODAY()),11,21)","v":"2016-11-21"},"A-12346",null,"הוצאה 2"]
[{"$nulls":3},"הוצאה 2"]
[{"$nulls":3},"הוצאה 3"]
[{"$nulls":3},"הוצאה 4"]
[{"$nulls":3},"הוצאה 5"]
["סה\"כ",null,{"$f":"SUBTOTAL(109,ExpNov[סכום])","v":{"v":0,"d":"0.00"}}]

{"sheet":"דצמ","index":13,"n_rows":9,"n_cols":5,"rows_kept":9,"merged":[[0,0,0,2]]}
["הוצאות בדצמבר",null,null,"סיכום","עצות"]
["תאריך","מס' הזמנת רכש","סכום","קטגוריה","תיאור"]
[{"$f":"DATE(YEAR(TODAY()),12,2)","v":"2016-12-02"},"A-12345",{"v":201,"d":"201.00"},"הוצאה 1","ציוד"]
[{"$f":"DATE(YEAR(TODAY()),12,24)","v":"2016-12-24"},"A-12346",{"v":98,"d":"98.00"},"הוצאה 2"]
[null,null,{"v":342,"d":"342.00"},"הוצאה 2"]
[null,null,{"v":122,"d":"122.00"},"הוצאה 3"]
[null,null,{"v":187,"d":"187.00"},"הוצאה 4"]
[null,null,{"v":99,"d":"99.00"},"הוצאה 5"]
["סה\"כ",null,{"$f":"SUBTOTAL(109,ExpDec[סכום])","v":{"v":1049,"d":"1,049.00"}}]